fUST/lending_fUST_20250531
["ID","MTS","AMOUNT","RATE_DAILY","PERIOD"]
[363347031,1748686237448,-430.0,0.00017534,2]
[363347032,1748686237458,-1497.69,0.00017534,2]
[363347033,1748686237467,-530.8,0.00017534,2]
[363347034,1748686237477,-298.63612072,0.00017534,2]
[363347035,1748686237488,-430.0,0.00017534,2]
[363347036,1748686237499,-430.0,0.00017534,2]
[363347037,1748686237509,-430.0,0.00017534,2]
[363347038,1748686237519,-461.43,0.00017534,2]
[363347039,1748686237529,-430.0,0.00017534,2]
[363347040,1748686237539,-430.0,0.00017534,2]
[363347041,1748686237548,-552.52,0.00017534,2]
[363347042,1748686237560,-430.0,0.00017534,2]
[363347043,1748686237570,-580.66,0.00017534,2]
[363347044,1748686237580,-1184.53264347,0.00017543,2]
[363347045,1748686237589,-500.0,0.00017557,2]
[363347046,1748686237599,-616.38667549,0.0001756,2]
[363347047,1748686237608,-503.3493337,0.0001756,2]
[363347048,1748686237617,-500.0,0.0001756,2]
[363347049,1748686237627,-562.98,0.00017588,2]
[363347050,1748686237636,-978.53,0.00017588,2]
[363347051,1748686237645,-430.0,0.00017588,2]
[363347052,1748686237655,-504.73903197,0.00017589,2]
[363347053,1748686237665,-157.04898683,0.00017648,2]
[363347054,1748686237675,-500.0,0.00017658,2]
[363347055,1748686237685,-430.0,0.00017721,2]
[363347056,1748686237695,-430.0,0.00017721,2]
[363347057,1748686237704,-430.0,0.00017721,2]
[363347058,1748686237713,-430.0,0.00017721,2]
[363347059,1748686237723,-483.75,0.00017721,2]
[363347060,1748686237733,-430.0,0.00017721,2]
[363347061,1748686237742,-430.0,0.00017721,2]
[363347062,1748686237754,-500.0,0.00017761,2]
[363347063,1748686237763,-430.0,0.00017808,2]
[363347064,1748686237773,-927.97,0.00017808,2]
[363347065,1748686237782,-430.0,0.00017808,2]
[363347066,1748686237792,-5684.98,0.00017808,2]
[363347067,1748686237801,-697.59,0.00017808,2]
[363347068,1748686237811,-1509.53,0.00017808,2]
[363347069,1748686237820,-430.0,0.00017808,2]
[363347071,1748686237830,-1271.18,0.00017808,2]
[363347072,1748686237839,-1335.13,0.00017808,2]
[363347073,1748686237849,-1028.05,0.00017808,2]
[363347074,1748686237859,-430.0,0.00017808,2]
[363347075,1748686237868,-430.0,0.00017808,2]
[363347076,1748686237877,-1497.69,0.00017808,2]
[363347078,1748686238000,-530.8,0.00017808,2]
[363347079,1748686238010,-430.0,0.00017808,2]
[363347080,1748686238020,-430.0,0.00017808,2]
[363347081,1748686238029,-430.0,0.00017808,2]
[363347082,1748686238039,-461.43,0.00017808,2]
[363347083,1748686238048,-430.0,0.00017808,2]
[363347084,1748686238058,-430.0,0.00017808,2]
[363347085,1748686238067,-552.52,0.00017808,2]
[363347086,1748686238076,-580.66,0.00017808,2]
[363347087,1748686238085,-562.98,0.00017862,2]
[363347088,1748686238095,-978.53,0.00017862,2]
[363347089,1748686238104,-430.0,0.00017862,2]
[363347090,1748686238113,-1311.93931906,0.00017895,2]
[363347091,1748686238125,-500.83326274,0.00017896,2]
[363347092,1748686238138,-500.0,0.00017896,2]
[363347093,1748686238147,-2369.67619575,0.000179,2]
[363347094,1748686238156,-420.0,0.00017962,2]
[363347095,1748686238166,-1003.63586101,0.00017992,2]
[363347096,1748686238175,-430.0,0.00017995,2]
[363347097,1748686238185,-430.0,0.00017995,2]
[363347098,1748686238194,-430.0,0.00017995,2]
[363347099,1748686238203,-430.0,0.00017995,2]
[363347100,1748686238214,-430.0,0.00017995,2]
[363347101,1748686238223,-430.0,0.00017995,2]
[363347102,1748686238232,-1000.0,0.00018026,2]
[363347103,1748686238241,-500.0,0.00018026,2]
[363347104,1748686238251,-430.0,0.00018082,2]
[363347105,1748686238261,-927.97,0.00018082,2]
[363347106,1748686238270,-430.0,0.00018082,2]
[363347107,1748686238280,-5684.98,0.00018082,2]
[363347108,1748686238289,-697.59,0.00018082,2]
[363347109,1748686238299,-1509.53,0.00018082,2]
[363347110,1748686238309,-430.0,0.00018082,2]
[363347111,1748686238319,-1271.18,0.00018082,2]
[363347112,1748686238328,-1335.13,0.00018082,2]
[363347113,1748686238338,-1028.05,0.00018082,2]
[363347114,1748686238347,-430.0,0.00018082,2]
[363347115,1748686238357,-430.0,0.00018082,2]
[363347116,1748686238367,-1497.69,0.00018082,2]
[363347117,1748686238376,-530.8,0.00018082,2]
[363347118,1748686238385,-224.6,0.00018082,2]
[363347119,1748686238394,-430.0,0.00018082,2]
[363347120,1748686238404,-430.0,0.00018082,2]
[363347121,1748686238414,-461.43,0.00018082,2]
[363347122,1748686238423,-430.0,0.00018082,2]
[363347123,1748686238432,-430.0,0.00018082,2]
[363347124,1748686238442,-552.52,0.00018082,2]
[363347125,1748686238452,-562.98,0.00018136,2]
[363347126,1748686238463,-978.53,0.00018136,2]
[363347127,1748686238473,-430.0,0.00018136,2]
[363347128,1748686238483,-2369.67619574,0.00018141,2]
[363347129,1748686238494,-900.0,0.00018164,2]
[363347130,1748686238507,-168.69438535,0.00018269,2]
[363347131,1748686238517,-430.0,0.00018269,2]
[363347132,1748686238528,-430.0,0.00018269,2]
[363347133,1748686238537,-313.11,0.00018269,2]
[363347134,1748686238547,-430.0,0.00018269,2]
[363347135,1748686238556,-430.0,0.00018269,2]
[363347136,1748686238566,-430.0,0.00018356,2]
[363347137,1748686238575,-927.97,0.00018356,2]
[363347138,1748686238584,-430.0,0.00018356,2]
[363347139,1748686238593,-5684.98,0.00018356,2]
[363347140,1748686238602,-697.59,0.00018356,2]
[363347141,1748686238611,-1509.53,0.00018356,2]
[363347142,1748686238620,-430.0,0.00018356,2]
[363347143,1748686238630,-1271.18,0.00018356,2]
[363347144,1748686238639,-1335.13,0.00018356,2]
[363347145,1748686238648,-1028.05,0.00018356,2]
[363347146,1748686238657,-430.0,0.00018356,2]
[363347147,1748686238666,-512.71590885,0.00018356,2]
[363347149,1748686238675,-1497.69,0.00018356,2]
[363347150,1748686238684,-530.8,0.00018356,2]
[363347151,1748686238693,-430.0,0.00018356,2]
[363347152,1748686238702,-430.0,0.00018356,2]
[363347153,1748686238710,-461.43,0.00018356,2]
[363347155,1748686238719,-430.0,0.00018356,2]
[363347156,1748686238728,-430.0,0.00018356,2]
[363347158,1748686238737,-552.52,0.00018356,2]
[363347160,1748686238746,-2369.67619574,0.00018383,2]
[363347162,1748686238757,-562.98,0.0001841,2]
[363347163,1748686238766,-978.53,0.0001841,2]
[363347165,1748686238775,-430.0,0.0001841,2]
[363347167,1748686238784,-12664.98044988,0.00018457,2]
[363347169,1748686238794,-423.4608169,0.00018457,2]
[363347171,1748686238803,-842.5625,0.00018457,2]
[363347172,1748686238812,-229.3428821,0.00018457,2]
[363347174,1748686238821,-160.0,0.00018457,2]
[363347175,1748686238830,-160.0,0.00018457,2]
[363347176,1748686238839,-212.77096907,0.00018457,2]
[363347177,1748686238849,-430.0,0.00018543,2]
[363347178,1748686238859,-430.0,0.00018543,2]
[363347179,1748686238868,-430.0,0.00018543,2]
[363347180,1748686238877,-500.0,0.00018574,2]
[363347181,1748686238887,-2369.67619574,0.00018624,2]
[363347182,1748686238896,-430.0,0.0001863,2]
[363347183,1748686238905,-927.97,0.0001863,2]
[363347184,1748686238915,-430.0,0.0001863,2]
[363347185,1748686238926,-5684.98,0.0001863,2]
[363347186,1748686238935,-697.59,0.0001863,2]
[363347187,1748686238945,-1509.53,0.0001863,2]
[363347188,1748686238955,-430.0,0.0001863,2]
[363347189,1748686238964,-1271.18,0.0001863,2]
[363347190,1748686238973,-1335.13,0.0001863,2]
[363347191,1748686238983,-1028.05,0.0001863,2]
[363347192,1748686238992,-430.0,0.0001863,2]
[363347193,1748686239001,-1497.69,0.0001863,2]
[363347194,1748686239011,-530.8,0.0001863,2]
[363347195,1748686239020,-430.0,0.0001863,2]
[363347196,1748686239029,-430.0,0.0001863,2]
[363347197,1748686239038,-461.43,0.0001863,2]
[363347198,1748686239048,-430.0,0.0001863,2]
[363347199,1748686239057,-430.0,0.0001863,2]
[363347200,1748686239066,-552.52,0.0001863,2]
[363347201,1748686239077,-562.98,0.00018684,2]
[363347202,1748686239086,-978.53,0.00018684,2]
[363347203,1748686239095,-430.0,0.00018684,2]
[363347204,1748686239105,-430.0,0.00018817,2]
[363347205,1748686239114,-430.0,0.00018817,2]
[363347206,1748686239123,-430.0,0.00018817,2]
[363347207,1748686239132,-2369.67619574,0.00018866,2]
[363347208,1748686239144,-385.0,0.00018895,2]
[363347209,1748686239153,-3823.45845833,0.000189,2]
[363347210,1748686239162,-430.0,0.00018904,2]
[363347211,1748686239172,-927.97,0.00018904,2]
[363347212,1748686239183,-430.0,0.00018904,2]
[363347213,1748686239192,-5684.98,0.00018904,2]
[363347214,1748686239201,-697.59,0.00018904,2]
[363347215,1748686239210,-1509.53,0.00018904,2]
[363347216,1748686239220,-430.0,0.00018904,2]
[363347217,1748686239229,-1271.18,0.00018904,2]
[363347218,1748686239239,-1335.13,0.00018904,2]
[363347219,1748686239248,-1028.05,0.00018904,2]
[363347220,1748686239257,-430.0,0.00018904,2]
[363347221,1748686239267,-1497.69,0.00018904,2]
[363347222,1748686239276,-530.8,0.00018904,2]
[363347223,1748686239285,-430.0,0.00018904,2]
[363347224,1748686239295,-430.0,0.00018904,2]
[363347225,1748686239304,-461.43,0.00018904,2]
[363347226,1748686239313,-430.0,0.00018904,2]
[363347227,1748686239322,-509.31,0.00018904,2]
[363347228,1748686239331,-552.52,0.00018904,2]
[363347229,1748686239340,-1311.93931906,0.00018907,2]
[363347230,1748686239350,-157.04898683,0.00018957,2]
[363347231,1748686239360,-562.98,0.00018958,2]
[363347232,1748686239369,-978.53,0.00018958,2]
[363347233,1748686239378,-430.0,0.00018958,2]
[363347234,1748686239389,-430.0,0.00019091,2]
[363347235,1748686239398,-430.0,0.00019091,2]
[363347236,1748686239407,-430.0,0.00019091,2]
[363347237,1748686239416,-2369.67619574,0.00019107,2]
[363347238,1748686239425,-500.0,0.00019178,2]
[363347239,1748686239435,-500.0,0.00019178,2]
[363347240,1748686239444,-500.0,0.00019178,2]
[363347241,1748686239454,-500.0,0.00019178,2]
[363347242,1748686239463,-500.0,0.00019178,2]
[363347243,1748686239472,-500.0,0.00019178,2]
[363347244,1748686239481,-500.0,0.00019178,2]
[363347245,1748686239491,-500.0,0.00019178,2]
[363347246,1748686239501,-500.0,0.00019178,2]
[363347247,1748686239510,-500.0,0.00019178,2]
[363347248,1748686239520,-500.0,0.00019178,2]
[363347249,1748686239529,-500.0,0.00019178,2]
[363347250,1748686239538,-500.0,0.00019178,2]
[363347251,1748686239547,-500.0,0.00019178,2]
[363347252,1748686239556,-500.0,0.00019178,2]
[363347253,1748686239566,-500.0,0.00019178,2]
[363347254,1748686239576,-500.0,0.00019178,2]
[363347255,1748686239585,-500.0,0.00019178,2]
[363347256,1748686239595,-500.0,0.00019178,2]
[363347257,1748686239604,-343.27296565,0.00019178,2]
[363347258,1748686239613,-500.0,0.00019178,2]
[363347259,1748686239623,-500.0,0.00019178,2]
[363347260,1748686239632,-500.0,0.00019178,2]
[363347261,1748686239641,-500.0,0.00019178,2]
[363347262,1748686239651,-500.0,0.00019178,2]
[363347263,1748686239660,-500.0,0.00019178,2]
[363347264,1748686239669,-500.0,0.00019178,2]
[363347265,1748686239678,-500.0,0.00019178,2]
[363347266,1748686239687,-500.0,0.00019178,2]
[363347267,1748686239696,-500.0,0.00019178,2]
[363347268,1748686239705,-500.0,0.00019178,2]
[363347269,1748686239714,-500.0,0.00019178,2]
[363347270,1748686239723,-500.0,0.00019178,2]
[363347271,1748686239733,-500.0,0.00019178,2]
[363347272,1748686239742,-500.0,0.00019178,2]
[363347273,1748686239753,-500.0,0.00019178,2]
[363347274,1748686239762,-500.0,0.00019178,2]
[363347275,1748686239771,-500.0,0.00019178,2]
[363347276,1748686239780,-500.0,0.00019178,2]
[363347277,1748686239789,-500.0,0.00019178,2]
[363347278,1748686239799,-500.0,0.00019178,2]
[363347279,1748686239808,-500.0,0.00019178,2]
[363347280,1748686239817,-500.0,0.00019178,2]
[363347281,1748686239827,-500.0,0.00019178,2]
[363347282,1748686239835,-500.0,0.00019178,2]
[363347283,1748686239843,-500.0,0.00019178,2]
[363347284,1748686239851,-500.0,0.00019178,2]
[363347285,1748686239861,-500.0,0.00019178,2]
[363347286,1748686239870,-500.0,0.00019178,2]
[363347287,1748686239879,-500.0,0.00019178,2]
[363347288,1748686239888,-500.0,0.00019178,2]
[363347289,1748686239897,-500.0,0.00019178,2]
[363347290,1748686239907,-500.0,0.00019178,2]
[363347291,1748686239916,-500.0,0.00019178,2]
[363347292,1748686239925,-500.0,0.00019178,2]
[363347293,1748686239934,-500.0,0.00019178,2]
[363347294,1748686239944,-500.0,0.00019178,2]
[363347295,1748686239953,-500.0,0.00019178,2]
[363347296,1748686239963,-500.0,0.00019178,2]
[363347297,1748686239972,-339.45669082,0.00019178,2]
[363347298,1748686239981,-500.0,0.00019178,2]
[363347299,1748686239990,-500.0,0.00019178,2]
[363347300,1748686239998,-500.0,0.00019178,2]
[363347301,1748686240012,-500.0,0.00019178,2]
[363347302,1748686240021,-500.0,0.00019178,2]
[363347303,1748686240031,-500.0,0.00019178,2]
[363347304,1748686240040,-500.0,0.00019178,2]
[363347305,1748686240050,-500.0,0.00019178,2]
[363347306,1748686240059,-500.0,0.00019178,2]
[363347307,1748686240069,-500.0,0.00019178,2]
[363347308,1748686240079,-560.0,0.00019178,2]
[363347309,1748686240088,-460.61382357,0.00019178,2]
[363347310,1748686240098,-927.97,0.00019178,2]
[363347311,1748686240107,-430.0,0.00019178,2]
[363347312,1748686240116,-5684.98,0.00019178,2]
[363347313,1748686240125,-697.59,0.00019178,2]
[363347314,1748686240136,-1509.53,0.00019178,2]
[363347315,1748686240147,-430.0,0.00019178,2]
[363347316,1748686240157,-1271.18,0.00019178,2]
[363347317,1748686240166,-1335.13,0.00019178,2]
[363347318,1748686240177,-1028.05,0.00019178,2]
[363347319,1748686240187,-430.0,0.00019178,2]
[363347320,1748686240196,-1497.69,0.00019178,2]
[363347321,1748686240206,-530.8,0.00019178,2]
[363347322,1748686240216,-430.0,0.00019178,2]
[363347323,1748686240225,-430.0,0.00019178,2]
[363347324,1748686240234,-461.43,0.00019178,2]
[363347325,1748686240243,-300.86732723,0.00019178,2]
[363347326,1748686240254,-552.52,0.00019178,2]
[363347328,1748686240265,-151.0,0.00019178,2]
[363347330,1748686240275,-601.859423,0.00019178,2]
[363347332,1748686240284,-562.98,0.00019232,2]
[363347333,1748686240293,-978.53,0.00019232,2]
[363347335,1748686240303,-430.0,0.00019232,2]
[363347337,1748686240312,-179.76952461,0.00019233,2]
[363347338,1748686240322,-900.0,0.0001926,2]
[363347339,1748686240332,-100000.0,0.00019329,2]
[363347340,1748686240340,-2369.67619574,0.00019348,2]
[363347341,1748686240349,-430.0,0.00019365,2]
[363347342,1748686240359,-430.0,0.00019365,2]
[363347343,1748686240370,-430.0,0.00019365,2]
[363347344,1748686240380,-927.97,0.00019452,2]
[363347345,1748686240390,-430.0,0.00019452,2]
[363347346,1748686240400,-5684.98,0.00019452,2]
[363347347,1748686240409,-697.59,0.00019452,2]
[363347348,1748686240419,-1509.53,0.00019452,2]
[363347349,1748686240429,-430.0,0.00019452,2]
[363347350,1748686240438,-1271.18,0.00019452,2]
[363347351,1748686240447,-1335.13,0.00019452,2]
[363347352,1748686240457,-1028.05,0.00019452,2]
[363347353,1748686240467,-430.0,0.00019452,2]
[363347354,1748686240477,-1497.69,0.00019452,2]
[363347355,1748686240486,-530.8,0.00019452,2]
[363347356,1748686240495,-430.0,0.00019452,2]
[363347357,1748686240507,-461.43,0.00019452,2]
[363347358,1748686240516,-552.52,0.00019452,2]
[363347359,1748686240525,-562.98,0.00019506,2]
[363347360,1748686240535,-978.53,0.00019506,2]
[363347361,1748686240545,-430.0,0.00019506,2]
[363347362,1748686240554,-2369.67619574,0.0001959,2]
[363347363,1748686240564,-587.0,0.0001963,2]
[363347364,1748686240573,-430.0,0.00019639,2]
[363347365,1748686240583,-430.0,0.00019639,2]
[363347366,1748686240592,-430.0,0.00019639,2]
[363347367,1748686240602,-927.97,0.00019726,2]
[363347368,1748686240611,-430.0,0.00019726,2]
[363347369,1748686240620,-5684.98,0.00019726,2]
[363347370,1748686240630,-697.59,0.00019726,2]
[363347371,1748686240639,-1509.53,0.00019726,2]
[363347372,1748686240649,-430.0,0.00019726,2]
[363347373,1748686240658,-1271.18,0.00019726,2]
[363347374,1748686240667,-1335.13,0.00019726,2]
[363347375,1748686240677,-1028.05,0.00019726,2]
[363347376,1748686240795,-270.87022875,0.00019726,2]
[363347377,1748686240805,-1497.69,0.00019726,2]
[363347378,1748686240815,-530.8,0.00019726,2]
[363347379,1748686240824,-430.0,0.00019726,2]
[363347380,1748686240834,-461.43,0.00019726,2]
[363347381,1748686240844,-552.52,0.00019726,2]
[363347382,1748686240853,-562.98,0.0001978,2]
[363347383,1748686240864,-978.53,0.0001978,2]
[363347384,1748686240873,-430.0,0.0001978,2]
[363347385,1748686240883,-2369.67619574,0.00019831,2]
[363347386,1748686240893,-898.518,0.00019903,2]
[363347387,1748686240903,-173.14713067,0.00019903,2]
[363347388,1748686240914,-430.0,0.00019913,2]
[363347389,1748686240923,-430.0,0.00019913,2]
[363347390,1748686240932,-430.0,0.00019913,2]
[363347391,1748686240941,-1311.93931906,0.00019918,2]
[363347392,1748686240950,-250.0,0.0002,30]
[363347393,1748686240960,-927.97,0.0002,2]
[363347394,1748686240969,-430.0,0.0002,2]
[363347395,1748686240979,-5684.98,0.0002,2]
[363347396,1748686240988,-697.59,0.0002,2]
[363347397,1748686240997,-1509.53,0.0002,2]
[363347398,1748686241007,-430.0,0.0002,2]
[363347399,1748686241016,-1271.18,0.0002,2]
[363347400,1748686241025,-1335.13,0.0002,2]
[363347401,1748686241035,-1028.05,0.0002,2]
[363347402,1748686241044,-1497.69,0.0002,2]
[363347403,1748686241053,-530.8,0.0002,2]
[363347404,1748686241062,-221.755081,0.0002,2]
[363347405,1748686241071,-430.0,0.0002,2]
[363347406,1748686241080,-461.43,0.0002,2]
[363347407,1748686241089,-552.52,0.0002,2]
[363347408,1748686241099,-562.98,0.00020054,2]
[363347409,1748686241108,-978.53,0.00020054,2]
[363347410,1748686241117,-430.0,0.00020054,2]
[363347411,1748686241127,-2369.67619574,0.00020072,2]
[363347412,1748686241139,-430.0,0.00020187,2]
[363347413,1748686241148,-430.0,0.00020187,2]
[363347414,1748686241159,-430.0,0.00020187,2]
[363347415,1748686241168,-157.04898683,0.00020267,2]
[363347416,1748686241178,-927.97,0.00020273,2]
[363347417,1748686241187,-430.0,0.00020273,2]
[363347418,1748686241197,-5684.98,0.00020273,2]
[363347419,1748686241206,-697.59,0.00020273,2]
[363347420,1748686241216,-1509.53,0.00020273,2]
[363347421,1748686241225,-430.0,0.00020273,2]
[363347422,1748686241234,-1271.18,0.00020273,2]
[363347423,1748686241244,-1335.13,0.00020273,2]
[363347424,1748686241255,-1028.05,0.00020273,2]
[363347425,1748686241264,-1497.69,0.00020273,2]
[363347426,1748686241274,-530.8,0.00020273,2]
[363347427,1748686241283,-430.0,0.00020273,2]
[363347428,1748686241292,-461.43,0.00020273,2]
[363347429,1748686241301,-552.52,0.00020273,2]
[363347430,1748686241311,-166.0,0.00020274,2]
[363347431,1748686241320,-144.62722876,0.00020314,3]
[363347432,1748686241448,-723.87,0.00020314,3]
[363347433,1748686241459,-1129.59180432,0.00020314,3]
[363347434,1748686241646,-430.0,0.00016438,2]
[363347435,1748686241655,-430.0,0.00016712,2]
[363347436,1748686241665,-469.18,0.00016986,2]
[363347437,1748686241675,-580.66,0.00018082,2]
[363347438,1748686241684,-580.66,0.00018356,2]
[363347439,1748686241693,-580.66,0.0001863,2]
[363347440,1748686241703,-580.66,0.00018904,2]
[363347441,1748686241712,-8.159614,0.00019178,2]
[363347442,1748686241724,-572.500386,0.00019178,2]
[363347443,1748686241733,-580.66,0.00019452,2]
[363347444,1748686241743,-580.66,0.00019726,2]
[363347445,1748686241752,-580.66,0.0002,2]
[363347446,1748686241763,-580.66,0.00020273,2]
[363347447,1748686241772,-371.58716266,0.00020314,3]
[363347448,1748686241781,-562.98,0.00020328,2]
[363347449,1748686241791,-978.53,0.00020328,2]
[363347450,1748686241800,-430.0,0.00020328,2]
[363347451,1748686241809,-900.0,0.00020356,2]
[363347452,1748686241819,-430.0,0.00020461,2]
[363347453,1748686241828,-515.63,0.00020461,2]
[363347454,1748686241837,-535.11633453,0.00020461,2]
[363347455,1748686241846,-311.5050251,0.00020521,2]
[363347456,1748686241855,-430.0,0.00020547,2]
[363347457,1748686241864,-5684.98,0.00020547,2]
[363347458,1748686241874,-697.59,0.00020547,2]
[363347459,1748686241883,-1509.53,0.00020547,2]
[363347460,1748686241892,-430.0,0.00020547,2]
[363347461,1748686241901,-1271.18,0.00020547,2]
[363347462,1748686241910,-1335.13,0.00020547,2]
[363347463,1748686241920,-1028.05,0.00020547,2]
[363347464,1748686241929,-1497.69,0.00020547,2]
[363347465,1748686241938,-530.8,0.00020547,2]
[363347466,1748686241947,-430.0,0.00020547,2]
[363347467,1748686241956,-461.43,0.00020547,2]
[363347468,1748686241967,-552.52,0.00020547,2]
[363347469,1748686241976,-580.66,0.00020547,2]
[363347470,1748686241986,-2369.67619574,0.00020555,3]
[363347471,1748686241995,-250.0,0.00020597,2]
[363347472,1748686242005,-9490.69,0.000206,2]
[363347473,1748686242014,-562.98,0.00020602,2]
[363347474,1748686242024,-978.53,0.00020602,2]
[363347475,1748686242033,-536.01991208,0.00020602,2]
[363347476,1748686242042,-159.82013329,0.00020685,2]
[363347477,1748686242051,-5000.0,0.00020697,2]
[363347478,1748686242060,-151.0,0.000207,3]
[363347479,1748686242070,-171.65629744,0.00020735,2]
[363347480,1748686242079,-207.4,0.00020779,2]
[363347481,1748686242088,-151.0,0.00020779,2]
[363347482,1748686242098,-5000.0,0.00020779,2]
[363347483,1748686242108,-1601.36094879,0.00020779,2]
[363347484,1748686242117,-2369.67619574,0.00020797,4]
[363347485,1748686242127,-163.45,0.00020821,2]
[363347486,1748686242140,-5684.98,0.00020821,2]
[363347487,1748686242149,-697.59,0.00020821,2]
[363347488,1748686242158,-1509.53,0.00020821,2]
[363347489,1748686242167,-430.0,0.00020821,2]
[363347490,1748686242178,-1271.18,0.00020821,2]
[363347491,1748686242188,-1335.13,0.00020821,2]
[363347492,1748686242200,-1028.05,0.00020821,2]
[363347493,1748686242210,-1497.69,0.00020821,2]
[363347494,1748686242219,-530.8,0.00020821,2]
[363347495,1748686242229,-430.0,0.00020821,2]
[363347496,1748686242239,-461.43,0.00020821,2]
[363347497,1748686242249,-552.52,0.00020821,2]
[363347498,1748686242260,-580.66,0.00020821,2]
[363347499,1748686242270,-562.98,0.00020876,2]
[363347500,1748686242280,-978.53,0.00020876,2]
[363347501,1748686242290,-151.0,0.000209,4]
[363347502,1748686242299,-1311.93931906,0.0002093,2]
[363347503,1748686242310,-616.17473697,0.00020951,2]
[363347504,1748686242319,-159.82013329,0.00020959,2]
[363347505,1748686242328,-3000.0,0.00021,2]
[363347506,1748686242339,-3693.1,0.00021,2]
[363347507,1748686242349,-2000.0,0.00021,2]
[363347508,1748686242358,-151.0,0.00021,2]
[363347509,1748686242369,-151.0,0.00021,2]
[363347510,1748686242378,-151.0,0.00021,2]
[363347511,1748686242388,-3000.0,0.0002101,2]
[363347512,1748686242397,-3000.0,0.0002102,2]
[363347513,1748686242407,-107868.77542308,0.0002103,3]
[363347514,1748686242416,-42353.72071315,0.0002103,2]
[363347515,1748686242425,-3000.0,0.0002103,2]
[363347516,1748686242435,-151.0,0.0002103,2]
[363347517,1748686242444,-151.0,0.0002103,2]
[363347518,1748686242454,-151.427335,0.0002103,2]
[363347519,1748686242463,-2369.67619574,0.00021038,4]
[363347520,1748686242473,-3000.0,0.0002104,2]
[363347521,1748686242482,-409.136036,0.0002104,2]
[363347522,1748686242492,-409.136036,0.0002104,2]
[363347523,1748686242502,-3000.0,0.0002105,2]
[363347524,1748686242512,-151.0,0.0002105,2]
[363347525,1748686242522,-151.0,0.0002105,2]
[363347526,1748686242532,-151.0,0.0002105,2]
[363347527,1748686242541,-3000.0,0.0002106,2]
[363347528,1748686242551,-3000.0,0.0002107,2]
[363347529,1748686242561,-3000.0,0.0002108,2]
[363347530,1748686242570,-151.0,0.0002108,2]
[363347531,1748686242579,-1029.782581,0.0002108,2]
[363347532,1748686242588,-1029.782581,0.0002108,2]
[363347533,1748686242598,-359.292158,0.0002108,2]
[363347534,1748686242607,-359.292158,0.0002108,2]
[363347535,1748686242617,-212.735993,0.0002108,2]
[363347536,1748686242626,-212.735993,0.0002108,2]
[363347537,1748686242635,-151.0,0.0002108,2]
[363347538,1748686242645,-151.0,0.0002108,2]
[363347539,1748686242655,-151.0,0.0002108,2]
[363347540,1748686242665,-151.0,0.0002108,2]
[363347541,1748686242674,-3000.0,0.0002109,2]
[363347542,1748686242684,-151.0,0.0002109,2]
[363347543,1748686242694,-151.0,0.0002109,2]
[363347544,1748686242703,-151.0,0.0002109,2]
[363347545,1748686242713,-5684.98,0.00021095,2]
[363347546,1748686242722,-697.59,0.00021095,2]
[363347547,1748686242732,-1509.53,0.00021095,2]